[Event "26th OIBM 2023"]
[Site "Gmund am Tegernsee"]
[Date "2023.10.30"]
[Round "3.7"]
[White "Lavrencic, Matic"]
[Black "Ghazarian, Kirk"]
[Result "1/2-1/2"]
[ECO "B45"]
[WhiteElo "2319"]
[BlackElo "2473"]
[Annotator "RC"]
[PlyCount "129"]
[EventDate "2023.10.04"]
[EventType "swiss"]
[EventCountry "GER"]
[SourceTitle "playchess.com"]
[Source "ChessBase"]
[SourceQuality "1"]
[TimeControl "40/5400+30:1800+30"]

1. e4 {[%emt 0:00:08]} c5 {[%emt 0:01:23]} 2. Nf3 {[%emt 0:00:07]} e6 {[%emt 0:00:45]} 3. d4 {[%emt 0:00:08]} cxd4 {[%emt 0:00:03]} 4. Nxd4 {[%emt 0:00:05]} Nf6 {[%emt 0:00:44]} 5. Nc3 {[%emt 0:00:10]} Nc6 {[%emt 0:00:50]} 6. a3 {[%emt 0:00:06]} Be7 {[%emt 0:00:20]} 7. Nxc6 {[%emt 0:00:14]} bxc6 {[%emt 0:00:05]} 8. e5 {[%emt 0:00:06]} Nd5 {[%emt 0:00:10]} 9. Qg4 {[%emt 0:00:05]} g6 {[%emt 0:00:50]} 10. Bd2 {[%emt 0:00:33]} Qc7 {[%emt 0:03:11]} 11. Qg3 {[%emt 0:15:22]} h5 {[%emt 0:17:12]} 12. h4 {[%emt 0:02:08]} Rb8 {[%emt 0:16:30]} 13. Bd3 {[%emt 0:14:00]} Rxb2 {[%emt 0:06:44]} 14. Ne4 {[%emt 0:01:50]} Qb6 {[%emt 0:10:56]} 15. O-O {[%emt 0:07:26]} Ba6 {[%emt 0:01:21]} 16. Bc1 {[%emt 0:09:49]} Bxd3 {[%emt 0:09:53]} 17. Qxd3 {[%emt 0:00:49]} O-O {[%emt 0:04:02]} 18. Bxb2 {[%emt 0:01:54]} Qxb2 {[%emt 0:00:02]} 19. c3 {[%emt 0:12:18]} Qb8 {[%emt 0:00:26]} 20. Qg3 {[%emt 0:02:30]} Qb3 {[%emt 0:02:09]} 21. a4 {[%emt 0:07:16]} Qc4 {[%emt 0:01:15]} 22. Rfe1 {[%emt 0:00:09]} a5 {[%emt 0:05:06]} 23. Rad1 {[%emt 0:05:13]} Qxa4 {[%emt 0:01:27]} 24. Rd4 {[%emt 0:00:47]} Qc2 {[%emt 0:01:51]} 25. c4 {[%emt 0:01:10]} c5 {[%emt 0:01:43]} 26. Rxd5 {[%emt 0:02:58]} exd5 {[%emt 0:00:02]} 27. cxd5 {[%emt 0:00:08]} Qc4 {[%emt 0:07:03]} 28. d6 {[%emt 0:01:49]} Bd8 {[%emt 0:00:52]} 29. Qe3 {[%emt 0:02:32]} Bxh4 {[%emt 0:02:23]} 30. Qxc5 {[%emt 0:01:50]} Qa4 {[%emt 0:02:41]} 31. g3 {[%emt 0:02:11]} Bd8 {[%emt 0:00:07]} 32. Re3 {[%emt 0:01:29]} h4 {[%emt 0:02:04]} 33. Kg2 {[%emt 0:00:32]} hxg3 {[%emt 0:01:02]} 34. Nxg3 {[%emt 0:00:22]} Qg4 {[%emt 0:01:21]} 35. Re4 {[%emt 0:00:45]} Qe6 {[%emt 0:00:09]} 36. Qc4 {[%emt 0:01:47]} Bb6 {[%emt 0:00:51]} 37. Qb5 {[%emt 0:01:52]} Bd8 {[%emt 0:00:06]} 38. Qc4 {[%emt 0:01:13]} Qxc4 {[%emt 0:00:48]} 39. Rxc4 {[%emt 0:00:01]} f6 {[%emt 0:00:20]} 40. f4 {[%emt 0:01:42]} fxe5 {[%emt 0:00:53]} 41. fxe5 {[%emt 0:30:08]} Kf7 {[%emt 0:04:34]} 42. Rf4+ {[%emt 0:00:00]} Ke8 {[%emt 0:00:35]} 43. Rc4 {[%emt 0:00:00]} Kf7 {[%emt 0:03:39]} 44. Rf4+ {[%emt 0:00:00]} Kg7 {[%emt 0:06:48]} 45. Rc4 {[%emt 0:00:00]} Bb6 {[%emt 0:01:41]} 46. Rc2 {[%emt 0:00:00]} Rf4 {[%emt 0:02:17]} 47. Re2 {[%emt 0:00:00]} Kf7 {[%emt 0:06:39]} 48. Ne4 {[%emt 0:00:00]} Rf5 {[%emt 0:01:54]} 49. Ng3 {[%emt 0:00:00]} Rf4 {[%emt 0:02:37]} 50. Ne4 {[%emt 0:00:00]} Ke6 {[%emt 0:01:36]} 51. Ng5+ {[%emt 0:00:00]} Kf5 {[%emt 0:00:10]} 52. Nf3 {[%emt 0:00:00]} Ke6 {[%emt 0:02:20]} 53. Ng5+ {[%emt 0:00:00]} Kd5 {[%emt 0:00:50]} 54. Kg3 {[%emt 0:00:00]} Rb4 {[%emt 0:00:46]} 55. e6 {[%emt 0:00:00]} dxe6 {[%emt 0:00:10]} 56. Rxe6 {[%emt 0:00:00]} a4 {[%emt 0:01:34]} 57. d7 {[%emt 0:00:00]} Bc7+ {[%emt 0:00:00]} 58. Kf3 {[%emt 0:00:00]} a3 {[%emt 0:01:05]} 59. Ra6 {[%emt 0:00:00]} Rb3+ {[%emt 0:00:30]} 60. Ke2 {[%emt 0:00:00]} Bd8 {[%emt 0:00:33]} 61. Nf7 {[%emt 0:05:00]} Rb8 {[%emt 0:00:28]} 62. Rxa3 {[%emt 0:00:52]} Ke6 {[%emt 0:00:13]} 63. Nxd8+ {[%emt 0:00:04]} Rxd8 {[%emt 0:00:01]} 64. Ra6+ {[%emt 0:00:07]} Kxd7 {[%emt 0:00:05]} 65. Rxg6 {[%emt 0:00:04]} 1/2-1/2

[Event "26th OIBM 2023"]
[Site "Gmund am Tegernsee"]
[Date "2023.10.30"]
[Round "3.8"]
[White "Vogel, Roven"]
[Black "Schneider, Jana"]
[Result "1-0"]
[ECO "A13"]
[WhiteElo "2471"]
[BlackElo "2285"]
[Annotator "RC"]
[PlyCount "99"]
[EventDate "2023.10.04"]
[EventType "swiss"]
[EventCountry "GER"]
[SourceTitle "playchess.com"]
[Source "ChessBase"]
[SourceQuality "1"]
[TimeControl "40/5400+30:1800+30"]

1. Nf3 {[%emt 0:00:04]} d5 {[%emt 0:00:08]} 2. e3 {[%emt 0:00:08]} Nf6 {[%emt 0:00:42]} 3. c4 {[%emt 0:00:06]} e6 {[%emt 0:00:25]} 4. b3 {[%emt 0:00:07]} c5 {[%emt 0:03:52]} 5. Bb2 {[%emt 0:00:31]} Nbd7 {[%emt 0:02:13]} 6. cxd5 {[%emt 0:02:14]} exd5 {[%emt 0:01:46]} 7. Nc3 {[%emt 0:05:23]} Be7 {[%emt 0:01:25]} 8. d4 {[%emt 0:00:23]} O-O {[%emt 0:00:56]} 9. Be2 {[%emt 0:00:59]} a6 {[%emt 0:07:35]} 10. O-O {[%emt 0:07:23]} Bd6 {[%emt 0:04:01]} 11. Rc1 {[%emt 0:09:55]} Re8 {[%emt 0:02:23]} 12. Kh1 {[%emt 0:02:54]} Bf8 {[%emt 0:10:14]} 13. Kg1 {[%emt 0:08:40]} b6 {[%emt 0:04:10]} 14. dxc5 {[%emt 0:00:16]} Nxc5 {[%emt 0:00:29]} 15. Nd4 {[%emt 0:01:11]} Bb7 {[%emt 0:12:28]} 16. Bf3 {[%emt 0:01:50]} Rc8 {[%emt 0:05:04]} 17. Nde2 {[%emt 0:04:03]} Bd6 {[%emt 0:01:24]} 18. Rc2 {[%emt 0:04:42]} Nce4 {[%emt 0:04:23]} 19. Ng3 {[%emt 0:02:53]} Be5 {[%emt 0:05:18]} 20. Nce2 {[%emt 0:05:13]} Ng5 {[%emt 0:03:26]} 21. Rxc8 {[%emt 0:01:45]} Bxc8 {[%emt 0:00:37]} 22. Bxe5 {[%emt 0:00:09]} Nxf3+ {[%emt 0:01:11]} 23. gxf3 {[%emt 0:00:06]} Rxe5 {[%emt 0:00:04]} 24. Qd4 {[%emt 0:00:19]} Re8 {[%emt 0:02:24]} 25. Rc1 {[%emt 0:00:53]} Be6 {[%emt 0:01:48]} 26. Rc6 {[%emt 0:03:26]} Nd7 {[%emt 0:02:19]} 27. Nf4 {[%emt 0:00:15]} Qg5 {[%emt 0:01:52]} 28. Kg2 {[%emt 0:07:04]} Qh6 {[%emt 0:06:23]} 29. Nxe6 {[%emt 0:07:17]} fxe6 {[%emt 0:00:25]} 30. Rd6 {[%emt 0:00:45]} Re7 {[%emt 0:03:00]} 31. f4 {[%emt 0:02:33]} Qf6 {[%emt 0:05:13]} 32. Qxf6 {[%emt 0:00:34]} gxf6 {[%emt 0:00:20]} 33. f5 {[%emt 0:00:06]} e5 {[%emt 0:03:33]} 34. Rxd5 {[%emt 0:00:08]} Kf8 {[%emt 0:02:05]} 35. Ne4 {[%emt 0:02:00]} Rg7+ {[%emt 0:00:44]} 36. Kf3 {[%emt 0:00:06]} Ke7 {[%emt 0:00:06]} 37. Rd6 {[%emt 0:00:16]} Rf7 {[%emt 0:01:42]} 38. b4 {[%emt 0:01:59]} Kd8 {[%emt 0:01:30]} 39. Rc6 {[%emt 0:03:14]} Rf8 {[%emt 0:01:20]} 40. a4 {[%emt 0:00:21]} Ke7 {[%emt 0:00:33]} 41. Re6+ {[%emt 0:39:07]} Kf7 {[%emt 0:02:02]} 42. Nd6+ {[%emt 0:00:00]} Kg8 {[%emt 0:00:06]} 43. Re7 {[%emt 0:00:00]} e4+ {[%emt 0:00:54]} 44. Kxe4 {[%emt 0:00:00]} Ne5 {[%emt 0:00:08]} 45. b5 {[%emt 0:00:00]} axb5 {[%emt 0:00:20]} 46. axb5 {[%emt 0:00:00]} Ng4 {[%emt 0:02:34]} 47. h4 {[%emt 0:00:00]} Nxf2+ {[%emt 0:00:23]} 48. Kd5 {[%emt 0:00:00]} Ng4 {[%emt 0:00:42]} 49. Kc6 {[%emt 0:00:00]} Rd8 {[%emt 0:01:07]} 50. Kc7 {[%emt 0:00:00]} 1-0

[Event "26th OIBM 2023"]
[Site "Gmund am Tegernsee"]
[Date "2023.10.30"]
[Round "3.9"]
[White "Golubka, Petro"]
[Black "Hainke, Guntram"]
[Result "1-0"]
[ECO "E21"]
[WhiteElo "2434"]
[BlackElo "2266"]
[Annotator "RC"]
[PlyCount "89"]
[EventDate "2023.10.04"]
[EventType "swiss"]
[EventCountry "GER"]
[SourceTitle "playchess.com"]
[Source "ChessBase"]
[SourceQuality "1"]
[TimeControl "40/5400+30:1800+30"]

1. d4 {[%emt 0:00:21]} Nf6 {[%emt 0:00:44]} 2. c4 {[%emt 0:00:14]} e6 {[%emt 0:00:40]} 3. Nc3 {[%emt 0:00:16]} Bb4 {[%emt 0:01:31]} 4. Nf3 {[%emt 0:02:46]} b6 {[%emt 0:03:24]} 5. g3 {[%emt 0:01:15]} Bb7 {[%emt 0:03:38]} 6. Bg2 {[%emt 0:00:07]} Bxc3+ {[%emt 0:06:53]} 7. bxc3 {[%emt 0:03:06]} d6 {[%emt 0:02:48]} 8. O-O {[%emt 0:00:51]} O-O {[%emt 0:00:08]} 9. Re1 {[%emt 0:00:54]} Nbd7 {[%emt 0:09:45]} 10. a4 {[%emt 0:00:40]} a5 {[%emt 0:04:32]} 11. Nh4 {[%emt 0:04:32]} Bxg2 {[%emt 0:03:54]} 12. Nxg2 {[%emt 0:06:37]} Re8 {[%emt 0:09:00]} 13. e4 {[%emt 0:01:01]} e5 {[%emt 0:00:07]} 14. f3 {[%emt 0:03:02]} c6 {[%emt 0:06:33]} 15. Bg5 {[%emt 0:01:08]} Qc7 {[%emt 0:02:58]} 16. Qb3 {[%emt 0:03:10]} h6 {[%emt 0:09:54]} 17. Bxf6 {[%emt 0:01:39]} Nxf6 {[%emt 0:00:11]} 18. Rab1 {[%emt 0:01:31]} Rab8 {[%emt 0:00:30]} 19. Ne3 {[%emt 0:00:37]} g6 {[%emt 0:01:39]} 20. Kg2 {[%emt 0:01:01]} Kg7 {[%emt 0:00:54]} 21. Rb2 {[%emt 0:00:46]} Rb7 {[%emt 0:05:20]} 22. Reb1 {[%emt 0:02:44]} Reb8 {[%emt 0:00:07]} 23. Qc2 {[%emt 0:01:07]} Qe7 {[%emt 0:02:00]} 24. h4 {[%emt 0:02:11]} Nd7 {[%emt 0:06:40]} 25. h5 {[%emt 0:08:30]} Qg5 {[%emt 0:00:56]} 26. Qf2 {[%emt 0:02:09]} Nf6 {[%emt 0:02:44]} 27. hxg6 {[%emt 0:00:26]} fxg6 {[%emt 0:00:04]} 28. c5 {[%emt 0:01:35]} dxc5 {[%emt 0:02:40]} 29. dxc5 {[%emt 0:01:43]} b5 {[%emt 0:05:47]} 30. axb5 {[%emt 0:01:15]} Rxb5 {[%emt 0:05:16]} 31. Rxb5 {[%emt 0:00:31]} cxb5 {[%emt 0:00:29]} 32. c6 {[%emt 0:01:22]} h5 {[%emt 0:02:21]} 33. Rxb5 {[%emt 0:23:40]} Rxb5 {[%emt 0:00:52]} 34. c7 {[%emt 0:00:02]} Rc5 {[%emt 0:00:38]} 35. Nf5+ {[%emt 0:00:07]} gxf5 {[%emt 0:00:05]} 36. Qxc5 {[%emt 0:00:07]} Qd2+ {[%emt 0:00:14]} 37. Kh3 {[%emt 0:00:09]} Ng4 {[%emt 0:02:23]} 38. Qe7+ {[%emt 0:00:33]} Kh6 {[%emt 0:00:29]} 39. Qe6+ {[%emt 0:01:07]} Kg7 {[%emt 0:00:09]} 40. fxg4 {[%emt 0:01:13]} hxg4+ {[%emt 0:00:44]} 41. Kh4 {[%emt 0:30:09]} Qh2+ {[%emt 0:04:46]} 42. Kg5 {[%emt 0:00:00]} Qd2+ {[%emt 0:00:03]} 43. Kxf5 {[%emt 0:00:00]} Qf2+ {[%emt 0:00:05]} 44. Kxg4 {[%emt 0:00:00]} Qe2+ {[%emt 0:00:22]} 45. Kh4 {[%emt 0:00:00]} 1-0

[Event "26th OIBM 2023"]
[Site "Gmund am Tegernsee"]
[Date "2023.10.30"]
[Round "3.10"]
[White "Forchert, Martin"]
[Black "Meins, Gerlef"]
[Result "1/2-1/2"]
[ECO "E92"]
[WhiteElo "2317"]
[BlackElo "2412"]
[Annotator "RC"]
[PlyCount "53"]
[EventDate "2023.10.04"]
[EventType "swiss"]
[EventCountry "GER"]
[SourceTitle "playchess.com"]
[Source "ChessBase"]
[SourceQuality "1"]
[TimeControl "40/5400+30:1800+30"]

1. d4 {[%emt 0:00:06]} Nf6 {[%emt 0:00:07]} 2. c4 {[%emt 0:00:10]} g6 {[%emt 0:00:10]} 3. Nc3 {[%emt 0:00:12]} Bg7 {[%emt 0:00:17]} 4. e4 {[%emt 0:00:08]} d6 {[%emt 0:00:13]} 5. Nf3 {[%emt 0:00:30]} O-O {[%emt 0:00:15]} 6. Be2 {[%emt 0:00:34]} e5 {[%emt 0:00:23]} 7. dxe5 {[%emt 0:00:54]} dxe5 {[%emt 0:00:09]} 8. Qxd8 {[%emt 0:00:14]} Rxd8 {[%emt 0:00:08]} 9. Bg5 {[%emt 0:00:39]} Re8 {[%emt 0:00:58]} 10. Nd5 {[%emt 0:01:26]} Nxd5 {[%emt 0:00:33]} 11. cxd5 {[%emt 0:00:09]} c6 {[%emt 0:00:49]} 12. Bc4 {[%emt 0:01:50]} cxd5 {[%emt 0:01:12]} 13. Bxd5 {[%emt 0:00:06]} Na6 {[%emt 0:00:53]} 14. Rc1 {[%emt 0:01:34]} Nb4 {[%emt 0:01:03]} 15. Bc4 {[%emt 0:00:21]} Be6 {[%emt 0:01:13]} 16. Bxe6 {[%emt 0:01:06]} Rxe6 {[%emt 0:00:14]} 17. O-O {[%emt 0:01:06]} Nxa2 {[%emt 0:01:25]} 18. Rc7 {[%emt 0:00:08]} Rb6 {[%emt 0:01:12]} 19. Rd1 {[%emt 0:01:50]} Rxb2 {[%emt 0:01:22]} 20. h3 {[%emt 0:02:16]} h6 {[%emt 0:01:53]} 21. Be3 {[%emt 0:00:38]} Nb4 {[%emt 0:02:27]} 22. Rdd7 {[%emt 0:04:03]} Na6 {[%emt 0:01:10]} 23. Rxb7 {[%emt 0:00:15]} Rxb7 {[%emt 0:00:09]} 24. Rxb7 {[%emt 0:00:08]} Rc8 {[%emt 0:01:01]} 25. Rxa7 {[%emt 0:03:07]} Nc5 {[%emt 0:00:58]} 26. Ra5 {[%emt 0:01:16]} Nxe4 {[%emt 0:02:29]} 27. Nxe5 {[%emt 0:00:35]} 1/2-1/2

[Event "26th OIBM 2023"]
[Site "Gmund am Tegernsee"]
[Date "2023.10.30"]
[Round "3.11"]
[White "Solomon, Kenny"]
[Black "Schmider, Niklas"]
[Result "0-1"]
[ECO "D43"]
[WhiteElo "2300"]
[BlackElo "2395"]
[Annotator "RC"]
[PlyCount "74"]
[EventDate "2023.10.04"]
[EventType "swiss"]
[EventCountry "GER"]
[SourceTitle "playchess.com"]
[Source "ChessBase"]
[SourceQuality "1"]
[TimeControl "40/5400+30:1800+30"]

1. d4 {[%emt 0:00:36]} Nf6 {[%emt 0:00:08]} 2. c4 {[%emt 0:00:06]} e6 {[%emt 0:00:07]} 3. Nf3 {[%emt 0:00:06]} d5 {[%emt 0:00:08]} 4. Nc3 {[%emt 0:00:11]} c6 {[%emt 0:00:10]} 5. Bg5 {[%emt 0:00:06]} h6 {[%emt 0:00:34]} 6. Bh4 {[%emt 0:01:15]} dxc4 {[%emt 0:00:44]} 7. e4 {[%emt 0:00:07]} g5 {[%emt 0:00:11]} 8. Bg3 {[%emt 0:00:04]} b5 {[%emt 0:00:12]} 9. h4 {[%emt 0:00:11]} g4 {[%emt 0:03:10]} 10. Ne5 {[%emt 0:03:34]} Nbd7 {[%emt 0:02:28]} 11. Be2 {[%emt 0:00:52]} Nxe5 {[%emt 0:07:46]} 12. Bxe5 {[%emt 0:00:10]} Rg8 {[%emt 0:00:23]} 13. O-O {[%emt 0:15:14]} Be7 {[%emt 0:08:20]} 14. g3 {[%emt 0:00:52]} Bb7 {[%emt 0:02:15]} 15. Re1 {[%emt 0:00:40]} Qb6 {[%emt 0:05:27]} 16. a4 {[%emt 0:08:54]} a6 {[%emt 0:01:14]} 17. Bf1 {[%emt 0:19:48]} Nd7 {[%emt 0:37:45]} 18. Bf4 {[%emt 0:06:58]} e5 {[%emt 0:02:26]} 19. dxe5 {[%emt 0:00:08]} O-O-O {[%emt 0:00:13]} 20. Qc2 {[%emt 0:12:47]} Nc5 {[%emt 0:00:30]} 21. axb5 {[%emt 0:11:12]} axb5 {[%emt 0:00:13]} 22. Bxh6 {[%emt 0:11:27]} Nb3 {[%emt 0:00:40]} 23. Rad1 {[%emt 0:00:02]} Bc5 {[%emt 0:09:13]} 24. Bg5 {[%emt 0:03:07]} Rxd1 {[%emt 0:00:51]} 25. Rxd1 {[%emt 0:00:07]} Nd4 {[%emt 0:00:32]} 26. Rxd4 {[%emt 0:00:50]} Bxd4 {[%emt 0:00:05]} 27. Qe2 {[%emt 0:03:13]} Kb8 {[%emt 0:00:10]} 28. Qxg4 {[%emt 0:01:11]} Bxf2+ {[%emt 0:06:55]} 29. Kg2 {[%emt 0:00:02]} Ka7 {[%emt 0:01:45]} 30. Qf4 {[%emt 0:00:51]} Bc5 {[%emt 0:00:15]} 31. h5 {[%emt 0:00:19]} Qc7 {[%emt 0:06:13]} 32. Bf6 {[%emt 0:00:30]} Qd7 {[%emt 0:01:17]} 33. h6 {[%emt 0:00:45]} Bc8 {[%emt 0:00:23]} 34. Kh2 {[%emt 0:00:37]} Rg4 {[%emt 0:00:58]} 35. Qf3 {[%emt 0:00:01]} Qd2+ {[%emt 0:00:31]} 36. Ne2 {[%emt 0:01:04]} Qxh6+ {[%emt 0:00:06]} 37. Kg2 {[%emt 0:00:11]} Qd2 {[%emt 0:03:29]} 0-1

[Event "26th OIBM 2023"]
[Site "Gmund am Tegernsee"]
[Date "2023.10.30"]
[Round "3.12"]
[White "Kargin, Arseny"]
[Black "Wyss, Jonas"]
[Result "1/2-1/2"]
[ECO "C18"]
[WhiteElo "2391"]
[BlackElo "2265"]
[Annotator "RC"]
[PlyCount "65"]
[EventDate "2023.10.04"]
[EventType "swiss"]
[EventCountry "GER"]
[SourceTitle "playchess.com"]
[Source "ChessBase"]
[SourceQuality "1"]
[TimeControl "40/5400+30:1800+30"]

1. e4 {[%emt 0:01:35]} e6 {[%emt 0:00:13]} 2. d4 {[%emt 0:00:05]} d5 {[%emt 0:00:10]} 3. Nc3 {[%emt 0:00:05]} Bb4 {[%emt 0:00:11]} 4. e5 {[%emt 0:00:06]} c5 {[%emt 0:00:08]} 5. a3 {[%emt 0:00:51]} Bxc3+ {[%emt 0:00:10]} 6. bxc3 {[%emt 0:00:04]} Ne7 {[%emt 0:00:13]} 7. Qg4 {[%emt 0:01:50]} cxd4 {[%emt 0:00:21]} 8. Qxg7 {[%emt 0:00:38]} Rg8 {[%emt 0:00:09]} 9. Qxh7 {[%emt 0:00:05]} Qc7 {[%emt 0:00:13]} 10. Ne2 {[%emt 0:00:22]} dxc3 {[%emt 0:01:42]} 11. f4 {[%emt 0:00:13]} Nbc6 {[%emt 0:00:23]} 12. h4 {[%emt 0:00:23]} d4 {[%emt 0:01:00]} 13. h5 {[%emt 0:04:06]} Bd7 {[%emt 0:00:16]} 14. Qd3 {[%emt 0:01:26]} O-O-O {[%emt 0:02:33]} 15. h6 {[%emt 0:01:09]} Rg6 {[%emt 0:05:24]} 16. h7 {[%emt 0:15:01]} Rh8 {[%emt 0:00:16]} 17. Nxd4 {[%emt 0:00:32]} Nxd4 {[%emt 0:18:31]} 18. Qxd4 {[%emt 0:00:21]} Bc6 {[%emt 0:00:39]} 19. Rh2 {[%emt 0:33:23]} b6 {[%emt 0:14:16]} 20. Bd3 {[%emt 0:03:48]} Rxg2 {[%emt 0:03:47]} 21. Rxg2 {[%emt 0:01:38]} Bxg2 {[%emt 0:00:12]} 22. Kf2 {[%emt 0:33:49]} Bb7 {[%emt 0:10:54]} 23. Be3 {[%emt 0:00:00]} Ng6 {[%emt 0:07:33]} 24. f5 {[%emt 0:00:00]} Nxe5 {[%emt 0:14:13]} 25. Rg1 {[%emt 0:00:00]} Nxd3+ {[%emt 0:03:42]} 26. cxd3 {[%emt 0:00:00]} Qh2+ {[%emt 0:00:44]} 27. Ke1 {[%emt 0:00:00]} Qxh7 {[%emt 0:01:04]} 28. fxe6 {[%emt 0:00:00]} fxe6 {[%emt 0:00:45]} 29. Bf4 {[%emt 0:00:00]} Qh4+ {[%emt 0:03:42]} 30. Kd1 {[%emt 0:00:00]} Bf3+ {[%emt 0:04:20]} 31. Kc1 {[%emt 0:00:45]} Kb7 {[%emt 0:00:54]} 32. Rg7+ {[%emt 0:02:15]} Ka8 {[%emt 0:00:07]} 33. Rxa7+ {[%emt 0:01:07]} 1/2-1/2

[Event "26th OIBM 2023"]
[Site "Gmund am Tegernsee"]
[Date "2023.10.30"]
[Round "3.13"]
[White "Bracker, Arne"]
[Black "Colpe, Malte"]
[Result "1/2-1/2"]
[ECO "C18"]
[WhiteElo "2279"]
[BlackElo "2386"]
[Annotator "RC"]
[PlyCount "74"]
[EventDate "2023.10.04"]
[EventType "swiss"]
[EventCountry "GER"]
[SourceTitle "playchess.com"]
[Source "ChessBase"]
[SourceQuality "1"]
[TimeControl "40/5400+30:1800+30"]

1. e4 {[%emt 0:00:07]} e6 {[%emt 0:00:05]} 2. d4 {[%emt 0:00:29]} d5 {[%emt 0:00:06]} 3. Nc3 {[%emt 0:00:12]} Bb4 {[%emt 0:01:56]} 4. e5 {[%emt 0:02:50]} c5 {[%emt 0:00:08]} 5. a3 {[%emt 0:00:05]} Ba5 {[%emt 0:00:04]} 6. b4 {[%emt 0:00:54]} cxd4 {[%emt 0:00:21]} 7. Nb5 {[%emt 0:00:54]} Bc7 {[%emt 0:00:59]} 8. f4 {[%emt 0:00:32]} Bd7 {[%emt 0:00:00]} 9. Nf3 {[%emt 0:01:28]} Bxb5 {[%emt 0:03:17]} 10. Bxb5+ {[%emt 0:00:10]} Nc6 {[%emt 0:00:11]} 11. O-O {[%emt 0:05:47]} Nge7 {[%emt 0:06:24]} 12. Bd3 {[%emt 0:09:11]} Bb6 {[%emt 0:04:45]} 13. Kh1 {[%emt 0:00:49]} a6 {[%emt 0:06:18]} 14. Bb2 {[%emt 0:16:34]} Qd7 {[%emt 0:07:02]} 15. Qe1 {[%emt 0:08:07]} Nf5 {[%emt 0:08:14]} 16. Bxf5 {[%emt 0:03:18]} exf5 {[%emt 0:00:08]} 17. Rd1 {[%emt 0:02:44]} Rc8 {[%emt 0:11:09]} 18. Nxd4 {[%emt 0:17:48]} Bxd4 {[%emt 0:00:51]} 19. Bxd4 {[%emt 0:00:06]} Nxd4 {[%emt 0:04:54]} 20. Rxd4 {[%emt 0:00:05]} Rxc2 {[%emt 0:01:43]} 21. Qd1 {[%emt 0:02:23]} Qc6 {[%emt 0:00:56]} 22. Rxd5 {[%emt 0:03:12]} O-O {[%emt 0:00:23]} 23. h3 {[%emt 0:00:22]} Rxg2 {[%emt 0:10:07]} 24. Rd6 {[%emt 0:14:50]} Qe4 {[%emt 0:01:21]} 25. Rd4 {[%emt 0:02:23]} Qe2 {[%emt 0:12:29]} 26. Qxe2 {[%emt 0:00:11]} Rxe2 {[%emt 0:00:07]} 27. Rfd1 {[%emt 0:00:58]} g6 {[%emt 0:07:41]} 28. R1d2 {[%emt 0:00:07]} Re1+ {[%emt 0:02:44]} 29. Kg2 {[%emt 0:00:02]} Ra1 {[%emt 0:00:31]} 30. Rd7 {[%emt 0:05:53]} Rxa3 {[%emt 0:03:10]} 31. Rxb7 {[%emt 0:00:23]} Rc8 {[%emt 0:00:29]} 32. h4 {[%emt 0:00:54]} Rcc3 {[%emt 0:01:50]} 33. e6 {[%emt 0:00:30]} Rg3+ {[%emt 0:00:33]} 34. Kh2 {[%emt 0:00:20]} Rh3+ {[%emt 0:00:25]} 35. Kg2 {[%emt 0:00:01]} Rag3+ {[%emt 0:02:55]} 36. Kf2 {[%emt 0:00:03]} Rf3+ {[%emt 0:00:09]} 37. Kg2 {[%emt 0:00:19]} Rhg3+ {[%emt 0:00:45]} 1/2-1/2

[Event "26th OIBM 2023"]
[Site "Gmund am Tegernsee"]
[Date "2023.10.30"]
[Round "3.14"]
[White "Schachinger, Mario"]
[Black "Cordts, Ingo"]
[Result "1-0"]
[ECO "E04"]
[WhiteElo "2385"]
[BlackElo "2242"]
[Annotator "RC"]
[PlyCount "89"]
[EventDate "2023.10.04"]
[EventType "swiss"]
[EventCountry "GER"]
[SourceTitle "playchess.com"]
[Source "ChessBase"]
[SourceQuality "1"]
[TimeControl "40/5400+30:1800+30"]

1. d4 {[%emt 0:00:06]} d5 {[%emt 0:00:16]} 2. c4 {[%emt 0:00:08]} e6 {[%emt 0:00:21]} 3. Nf3 {[%emt 0:00:13]} Nf6 {[%emt 0:00:20]} 4. g3 {[%emt 0:00:15]} dxc4 {[%emt 0:00:17]} 5. Bg2 {[%emt 0:00:07]} Bd7 {[%emt 0:00:34]} 6. Ne5 {[%emt 0:03:36]} Bc6 {[%emt 0:00:28]} 7. Nxc6 {[%emt 0:00:52]} Nxc6 {[%emt 0:00:08]} 8. O-O {[%emt 0:05:42]} Qd7 {[%emt 0:04:29]} 9. e3 {[%emt 0:04:40]} Rb8 {[%emt 0:06:03]} 10. Qe2 {[%emt 0:08:06]} b5 {[%emt 0:04:09]} 11. b3 {[%emt 0:00:54]} cxb3 {[%emt 0:06:23]} 12. axb3 {[%emt 0:01:44]} Bb4 {[%emt 0:08:20]} 13. Ra6 {[%emt 0:14:41]} Ne7 {[%emt 0:08:45]} 14. Rxa7 {[%emt 0:03:12]} Qd6 {[%emt 0:07:03]} 15. Bb2 {[%emt 0:11:43]} Qb6 {[%emt 0:02:52]} 16. Ra1 {[%emt 0:00:22]} O-O {[%emt 0:07:46]} 17. Nd2 {[%emt 0:02:16]} Rfd8 {[%emt 0:05:58]} 18. Nf3 {[%emt 0:00:44]} Nd7 {[%emt 0:04:41]} 19. Rfc1 {[%emt 0:07:20]} c5 {[%emt 0:04:12]} 20. Ng5 {[%emt 0:01:47]} h6 {[%emt 0:03:16]} 21. Ne4 {[%emt 0:01:34]} f5 {[%emt 0:02:23]} 22. Nxc5 {[%emt 0:04:23]} Nxc5 {[%emt 0:01:49]} 23. dxc5 {[%emt 0:00:03]} Bxc5 {[%emt 0:00:37]} 24. b4 {[%emt 0:08:07]} Bxb4 {[%emt 0:03:24]} 25. Bd4 {[%emt 0:00:09]} Qd6 {[%emt 0:02:04]} 26. Qb2 {[%emt 0:02:02]} Rbc8 {[%emt 0:00:40]} 27. Rcb1 {[%emt 0:02:43]} Bc5 {[%emt 0:03:15]} 28. Bxg7 {[%emt 0:00:54]} Kh7 {[%emt 0:05:02]} 29. Be5 {[%emt 0:03:53]} Qd2 {[%emt 0:03:15]} 30. Qb3 {[%emt 0:01:20]} Qd7 {[%emt 0:01:46]} 31. Rd1 {[%emt 0:01:31]} Nd5 {[%emt 0:00:43]} 32. Rd3 {[%emt 0:04:03]} Bb6 {[%emt 0:02:31]} 33. Rad1 {[%emt 0:00:17]} Rc4 {[%emt 0:00:28]} 34. Qb1 {[%emt 0:01:30]} Qc6 {[%emt 0:02:12]} 35. R3d2 {[%emt 0:02:52]} Ba5 {[%emt 0:00:37]} 36. Bxd5 {[%emt 0:00:24]} Rxd5 {[%emt 0:00:20]} 37. Rxd5 {[%emt 0:00:06]} exd5 {[%emt 0:00:09]} 38. Qxf5+ {[%emt 0:00:06]} Kg8 {[%emt 0:00:32]} 39. Bf6 {[%emt 0:01:34]} Qe8 {[%emt 0:01:01]} 40. Qxd5+ {[%emt 0:00:19]} Kf8 {[%emt 0:00:49]} 41. Qf5 {[%emt 0:31:43]} Kg8 {[%emt 0:02:37]} 42. Rd5 {[%emt 0:00:00]} Bb6 {[%emt 0:01:37]} 43. Rxb5 {[%emt 0:00:00]} Rc1+ {[%emt 0:01:33]} 44. Kg2 {[%emt 0:00:00]} Qc6+ {[%emt 0:00:19]} 45. Rd5 {[%emt 0:00:00]} 1-0